Department family,Entity,Date,Expense type,Expense area,Supplier,Transaction number,Amount
Department of Health,Leicestershire Partnership NHS Trust,01/05/20,Computer EquipmentMaintenance,HIS Infrastructure,TP LEASING LTD,MI/0030017/01,57274.19
Department of Health,Leicestershire Partnership NHS Trust,01/05/20,HIS LPT Costs,HIS,WELLSKY INTERNATIONAL LTD,INV000630,148976.10
Department of Health,Leicestershire Partnership NHS Trust,01/05/20,CHP Estates Management,Belgrave Health Centre (CHP),COMM HLTH PARTNERSHIPS LTD,0060147215,10177.69
Department of Health,Leicestershire Partnership NHS Trust,01/05/20,CHP Estates Management,Merlyn Vaz Centre (CHP),COMM HLTH PARTNERSHIPS LTD,0060147215,60652.57
Department of Health,Leicestershire Partnership NHS Trust,01/05/20,CHP Estates Management,"St Peters Health Center (Part 1st and 2nd floors) (P66, LPT)",COMM HLTH PARTNERSHIPS LTD,0060147215,9458.26
Department of Health,Leicestershire Partnership NHS Trust,01/05/20,CHP Estates Management,Westcotes Health Centre (CHP),COMM HLTH PARTNERSHIPS LTD,0060147215,13334.80
Department of Health,Leicestershire Partnership NHS Trust,04/05/20,Nurse - Band 6 -Agency,CAMHS Waiting List Monies,HCL SOCIAL CARE,SI0001119,28714.48
Department of Health,Leicestershire Partnership NHS Trust,04/05/20,Computer License  Fees,CHS - Head of Nursing,SOFTCAT PLC,INV02574439,46368.10
Department of Health,Leicestershire Partnership NHS Trust,04/05/20,External Data Processing / Storage,Records & information Governance,H COATES LTD/TA C&V DATA,4001182,28341.18
Department of Health,Leicestershire Partnership NHS Trust,04/05/20,Medical & Surgical Equipment : Disposable,Medical Devices Maintenance (LPT),MEDSTROM HEALTHCARE,0000041896,69903.36
Department of Health,Leicestershire Partnership NHS Trust,05/05/20,Other Non-Medical Supplies & Services,Inter Unit I & E Distribution,UHL NHS TRUST (RWE),L0242046,139176.35
Department of Health,Leicestershire Partnership NHS Trust,05/05/20,CHP Estates Management,Belgrave Health Centre (CHP),COMM HLTH PARTNERSHIPS LTD,0060148246,10177.69
Department of Health,Leicestershire Partnership NHS Trust,05/05/20,CHP Estates Management,Merlyn Vaz Centre (CHP),COMM HLTH PARTNERSHIPS LTD,0060148246,60652.57
Department of Health,Leicestershire Partnership NHS Trust,05/05/20,CHP Estates Management,"St Peters Health Center (Part 1st and 2nd floors) (P66, LPT)",COMM HLTH PARTNERSHIPS LTD,0060148246,9458.26
Department of Health,Leicestershire Partnership NHS Trust,05/05/20,CHP Estates Management,Westcotes Health Centre (CHP),COMM HLTH PARTNERSHIPS LTD,0060148246,13334.80
Department of Health,Leicestershire Partnership NHS Trust,05/05/20,Rent,"Syston Health Centre (New Building) (P127, LPT)",PHIP (5) LIMITED,LINV511223,37500.00
Department of Health,Leicestershire Partnership NHS Trust,05/05/20,Unitary Payment,"The Agnes Unit (AKA Assessment and Treatment Centre) (P85, LPT)",ARDEN PARTNERSHIP (LEICESTER),SI0045,115599.66
Department of Health,Leicestershire Partnership NHS Trust,05/05/20,Computer Software,HR Employment Services,SOFTCAT PLC,INV02575798,99327.60
Department of Health,Leicestershire Partnership NHS Trust,06/05/20,Computer Hardware,HIS External Recharge,TRUSTMARQUE SOLUTIONS LTD,2299270,49617.90
Department of Health,Leicestershire Partnership NHS Trust,06/05/20,Payroll Deductions -Salary Sacrifice Cars Scheme,Balance Sheet Collection,TUSKER,28693,27652.31
Department of Health,Leicestershire Partnership NHS Trust,07/05/20,NURSE - BAND 2 - AGENCY,Beechwood Ward,HCL NURSING,HNSI0000360,772.35
Department of Health,Leicestershire Partnership NHS Trust,07/05/20,NURSE - BAND 5 - AGENCY,Beechwood Ward,HCL NURSING,HNSI0000360,3316.26
Department of Health,Leicestershire Partnership NHS Trust,07/05/20,NURSE - BAND 5 - AGENCY,City Planned Care - East,HCL NURSING,HNSI0000360,19026.28
Department of Health,Leicestershire Partnership NHS Trust,07/05/20,NURSE - BAND 5 - AGENCY,City Planned Care - West,HCL NURSING,HNSI0000360,11239.50
Department of Health,Leicestershire Partnership NHS Trust,07/05/20,Nurse - Band 6 -Agency,City West CMHT MHSOP,HCL NURSING,HNSI0000360,1069.88
Department of Health,Leicestershire Partnership NHS Trust,07/05/20,NURSE - BAND 2 - AGENCY,Clarendon Ward,HCL NURSING,HNSI0000360,1551.84
Department of Health,Leicestershire Partnership NHS Trust,07/05/20,NURSE - BAND 5 - AGENCY,Clarendon Ward,HCL NURSING,HNSI0000360,6793.54
Department of Health,Leicestershire Partnership NHS Trust,07/05/20,NURSE - BAND 2 - AGENCY,Coalville Snibston Ward,HCL NURSING,HNSI0000360,1137.34
Department of Health,Leicestershire Partnership NHS Trust,07/05/20,NURSE - BAND 2 - AGENCY,Coalville Ward 2,HCL NURSING,HNSI0000360,211.93
Department of Health,Leicestershire Partnership NHS Trust,07/05/20,NURSE - BAND 5 - AGENCY,Dalgliesh Ward,HCL NURSING,HNSI0000360,632.49
Department of Health,Leicestershire Partnership NHS Trust,07/05/20,NURSE - BAND 5 - AGENCY,"East Planned Care - Oadby,Wigston & Harborough",HCL NURSING,HNSI0000360,2683.29
Department of Health,Leicestershire Partnership NHS Trust,07/05/20,NURSE - BAND 2 - AGENCY,Fielding Palmer Nursing,HCL NURSING,HNSI0000360,222.50
Department of Health,Leicestershire Partnership NHS Trust,07/05/20,NURSE - BAND 5 - AGENCY,Gwendolen Ward,HCL NURSING,HNSI0000360,1595.16
Department of Health,Leicestershire Partnership NHS Trust,07/05/20,NURSE - BAND 2 - AGENCY,H&B Comm Hosp East Ward,HCL NURSING,HNSI0000360,611.07
Department of Health,Leicestershire Partnership NHS Trust,07/05/20,NURSE - BAND 5 - AGENCY,H&B Comm Hosp East Ward,HCL NURSING,HNSI0000360,1310.32
Department of Health,Leicestershire Partnership NHS Trust,07/05/20,NURSE - BAND 2 - AGENCY,H&B Comm Hosp North Ward,HCL NURSING,HNSI0000360,211.93
Department of Health,Leicestershire Partnership NHS Trust,07/05/20,NURSE - BAND 2 - AGENCY,Kirby Ward,HCL NURSING,HNSI0000360,339.64
Department of Health,Leicestershire Partnership NHS Trust,07/05/20,NURSE - BAND 5 - AGENCY,Kirby Ward,HCL NURSING,HNSI0000360,302.58
Department of Health,Leicestershire Partnership NHS Trust,07/05/20,NURSE - BAND 2 - AGENCY,Lough Swithland Ward,HCL NURSING,HNSI0000360,223.60
Department of Health,Leicestershire Partnership NHS Trust,07/05/20,NURSE - BAND 5 - AGENCY,Lough Swithland Ward,HCL NURSING,HNSI0000360,1026.94
Department of Health,Leicestershire Partnership NHS Trust,07/05/20,NURSE - BAND 2 - AGENCY,St Lukes Ward 3,HCL NURSING,HNSI0000360,423.87
Department of Health,Leicestershire Partnership NHS Trust,07/05/20,NURSE - BAND 5 - AGENCY,St Lukes Ward 3,HCL NURSING,HNSI0000360,5751.49
Department of Health,Leicestershire Partnership NHS Trust,07/05/20,NURSE - BAND 2 - AGENCY,Welford Ward,HCL NURSING,HNSI0000360,660.93
Department of Health,Leicestershire Partnership NHS Trust,07/05/20,NURSE - BAND 5 - AGENCY,Welford Ward,HCL NURSING,HNSI0000360,1000.15
Department of Health,Leicestershire Partnership NHS Trust,07/05/20,Leased / Hired Vehicles,Assertive Outreach Services,AUTOMOTIVE LEASING LTD,506743113,5.00
Department of Health,Leicestershire Partnership NHS Trust,07/05/20,Leased / Hired Vehicles,Autism,AUTOMOTIVE LEASING LTD,506743113,638.96
Department of Health,Leicestershire Partnership NHS Trust,07/05/20,Prep_ LT1y -Prepayments Lease Cars,Balance Sheet Collection,AUTOMOTIVE LEASING LTD,506743113,31266.62
Department of Health,Leicestershire Partnership NHS Trust,07/05/20,Trade_Drs_LT1y -Lease Cars Invoicing Contrl Ac.,Balance Sheet Collection,AUTOMOTIVE LEASING LTD,506743113,320.00
Department of Health,Leicestershire Partnership NHS Trust,07/05/20,Leased / Hired Vehicles,City East Cluster SN Area 6,AUTOMOTIVE LEASING LTD,506743113,98.97
Department of Health,Leicestershire Partnership NHS Trust,07/05/20,Leased / Hired Vehicles,City Planned Care - East,AUTOMOTIVE LEASING LTD,506743113,15.00
Department of Health,Leicestershire Partnership NHS Trust,07/05/20,Leased / Hired Vehicles,City Planned Care - East - Therapy,AUTOMOTIVE LEASING LTD,506743113,10.00
Department of Health,Leicestershire Partnership NHS Trust,07/05/20,Leased / Hired Vehicles,Crisis Response and Home Treatment,AUTOMOTIVE LEASING LTD,506743113,10.00
Department of Health,Leicestershire Partnership NHS Trust,07/05/20,Leased / Hired Vehicles,"East Planned Care - Melton,Syston,Rut - Therapy",AUTOMOTIVE LEASING LTD,506743113,5.00
Department of Health,Leicestershire Partnership NHS Trust,07/05/20,Leased / Hired Vehicles,Finance Department,AUTOMOTIVE LEASING LTD,506743113,20.02
Department of Health,Leicestershire Partnership NHS Trust,07/05/20,Leased / Hired Vehicles,Integrated Specialist Palliative Care Team,AUTOMOTIVE LEASING LTD,506743113,10.00
Department of Health,Leicestershire Partnership NHS Trust,07/05/20,Leased / Hired Vehicles,PIER Team - Early Intervention Services,AUTOMOTIVE LEASING LTD,506743113,5.00
Department of Health,Leicestershire Partnership NHS Trust,07/05/20,Leased / Hired Vehicles,Stewart House,AUTOMOTIVE LEASING LTD,506743113,1199.77
Department of Health,Leicestershire Partnership NHS Trust,07/05/20,Leased / Hired Vehicles,West Planned Care  - Charnwood Hub - Therapy,AUTOMOTIVE LEASING LTD,506743113,5.00
Department of Health,Leicestershire Partnership NHS Trust,07/05/20,Leased / Hired Vehicles,West Planned Care - NWL Hub - Therapy,AUTOMOTIVE LEASING LTD,506743113,35.00
Department of Health,Leicestershire Partnership NHS Trust,07/05/20,HR / Payroll Services,HR Employment Services,LINCOLNSHIRE PART NHSFT(RP7),2000020736,29360.83
Department of Health,Leicestershire Partnership NHS Trust,11/05/20,Medical Consumables,Community Health Services Management,MEDI UK LTD,2048899,40800.00
Department of Health,Leicestershire Partnership NHS Trust,12/05/20,NURSE - BAND 2 - AGENCY,Beechwood Ward,HCL NURSING,HNSI0000363,421.93
Department of Health,Leicestershire Partnership NHS Trust,12/05/20,NURSE - BAND 5 - AGENCY,Beechwood Ward,HCL NURSING,HNSI0000363,4061.52
Department of Health,Leicestershire Partnership NHS Trust,12/05/20,NURSE - BAND 5 - AGENCY,City Planned Care - East,HCL NURSING,HNSI0000363,13258.65
Department of Health,Leicestershire Partnership NHS Trust,12/05/20,NURSE - BAND 5 - AGENCY,City Planned Care - West,HCL NURSING,HNSI0000363,6667.57
Department of Health,Leicestershire Partnership NHS Trust,12/05/20,Nurse - Band 6 -Agency,City West CMHT MHSOP,HCL NURSING,HNSI0000363,3162.20
Department of Health,Leicestershire Partnership NHS Trust,12/05/20,NURSE - BAND 2 - AGENCY,Clarendon Ward,HCL NURSING,HNSI0000363,75.27
Department of Health,Leicestershire Partnership NHS Trust,12/05/20,NURSE - BAND 5 - AGENCY,Clarendon Ward,HCL NURSING,HNSI0000363,3190.39
Department of Health,Leicestershire Partnership NHS Trust,12/05/20,NURSE - BAND 2 - AGENCY,Coalville Snibston Ward,HCL NURSING,HNSI0000363,251.77
Department of Health,Leicestershire Partnership NHS Trust,12/05/20,NURSE - BAND 5 - AGENCY,Coalville Ward 2,HCL NURSING,HNSI0000363,1227.62
Department of Health,Leicestershire Partnership NHS Trust,12/05/20,NURSE - BAND 5 - AGENCY,Coleman Ward,HCL NURSING,HNSI0000363,605.16
Department of Health,Leicestershire Partnership NHS Trust,12/05/20,NURSE - BAND 5 - AGENCY,"East Planned Care - Oadby,Wigston & Harborough",HCL NURSING,HNSI0000363,2831.95
Department of Health,Leicestershire Partnership NHS Trust,12/05/20,NURSE - BAND 2 - AGENCY,Fielding Palmer Nursing,HCL NURSING,HNSI0000363,0.80
Department of Health,Leicestershire Partnership NHS Trust,12/05/20,NURSE - BAND 2 - AGENCY,Gwendolen Ward,HCL NURSING,HNSI0000363,6.77
Department of Health,Leicestershire Partnership NHS Trust,12/05/20,NURSE - BAND 5 - AGENCY,Gwendolen Ward,HCL NURSING,HNSI0000363,302.58
Department of Health,Leicestershire Partnership NHS Trust,12/05/20,NURSE - BAND 2 - AGENCY,H&B Comm Hosp East Ward,HCL NURSING,HNSI0000363,5.61
Department of Health,Leicestershire Partnership NHS Trust,12/05/20,NURSE - BAND 2 - AGENCY,H&B Comm Hosp North Ward,HCL NURSING,HNSI0000363,1.33
Department of Health,Leicestershire Partnership NHS Trust,12/05/20,NURSE - BAND 2 - AGENCY,Kirby Ward,HCL NURSING,HNSI0000363,502.70
Department of Health,Leicestershire Partnership NHS Trust,12/05/20,NURSE - BAND 5 - AGENCY,Kirby Ward,HCL NURSING,HNSI0000363,326.24
Department of Health,Leicestershire Partnership NHS Trust,12/05/20,NURSE - BAND 2 - AGENCY,Lough Swithland Ward,HCL NURSING,HNSI0000363,2.67
Department of Health,Leicestershire Partnership NHS Trust,12/05/20,NURSE - BAND 5 - AGENCY,Lough Swithland Ward,HCL NURSING,HNSI0000363,1921.91
Department of Health,Leicestershire Partnership NHS Trust,12/05/20,NURSE - BAND 5 - AGENCY,Rutland Ward Nursing,HCL NURSING,HNSI0000363,514.90
Department of Health,Leicestershire Partnership NHS Trust,12/05/20,NURSE - BAND 2 - AGENCY,St Lukes Stroke Ward,HCL NURSING,HNSI0000363,187.42
Department of Health,Leicestershire Partnership NHS Trust,12/05/20,NURSE - BAND 2 - AGENCY,St Lukes Ward 3,HCL NURSING,HNSI0000363,4.00
Department of Health,Leicestershire Partnership NHS Trust,12/05/20,NURSE - BAND 5 - AGENCY,St Lukes Ward 3,HCL NURSING,HNSI0000363,4818.68
Department of Health,Leicestershire Partnership NHS Trust,12/05/20,NURSE - BAND 2 - AGENCY,Welford Ward,HCL NURSING,HNSI0000363,435.15
Department of Health,Leicestershire Partnership NHS Trust,12/05/20,NURSE - BAND 5 - AGENCY,Welford Ward,HCL NURSING,HNSI0000363,326.24
Department of Health,Leicestershire Partnership NHS Trust,12/05/20,CONSULTANT HONOURARY,CAMHS CITY TEAM,UNIVERSITY OF LEICESTER,2230114050,3641.00
Department of Health,Leicestershire Partnership NHS Trust,12/05/20,CONSULTANT HONOURARY,Medical Director - Hq Report,UNIVERSITY OF LEICESTER,2230114050,125849.00
Department of Health,Leicestershire Partnership NHS Trust,12/05/20,CONSULTANT,Medical Trainees,UNIVERSITY OF LEICESTER,2230114050,3369.00
Department of Health,Leicestershire Partnership NHS Trust,12/05/20,SPECIALITY TRAINING 4-6 (ST 4-6),Medical Trainees,UNIVERSITY OF LEICESTER,2230114050,13742.00
Department of Health,Leicestershire Partnership NHS Trust,12/05/20,CONSULTANT,Service Increment For Teaching Income (SIFT),UNIVERSITY OF LEICESTER,2230114050,3369.00
Department of Health,Leicestershire Partnership NHS Trust,13/05/20,Rent,"St Peters Health Center (Part 1st and 2nd floors) (P66, LPT)",LEICESTER LIFT CO,LEP1/S0490,27433.45
Department of Health,Leicestershire Partnership NHS Trust,14/05/20,Network Costs - WAN Maint,HIS Infrastructure,VIRGIN MEDIA BUSINESS,262421-167,41181.47
Department of Health,Leicestershire Partnership NHS Trust,15/05/20,NURSE - BAND 2 - AGENCY,Beechwood Ward,HCL NURSING,HNSI0000370,619.12
Department of Health,Leicestershire Partnership NHS Trust,15/05/20,NURSE - BAND 5 - AGENCY,Beechwood Ward,HCL NURSING,HNSI0000370,2118.23
Department of Health,Leicestershire Partnership NHS Trust,15/05/20,NURSE - BAND 5 - AGENCY,City Planned Care - East,HCL NURSING,HNSI0000370,19249.68
Department of Health,Leicestershire Partnership NHS Trust,15/05/20,NURSE - BAND 5 - AGENCY,City Planned Care - West,HCL NURSING,HNSI0000370,15667.96
Department of Health,Leicestershire Partnership NHS Trust,15/05/20,Nurse - Band 6 -Agency,City West CMHT MHSOP,HCL NURSING,HNSI0000370,855.90
Department of Health,Leicestershire Partnership NHS Trust,15/05/20,NURSE - BAND 2 - AGENCY,Clarendon Ward,HCL NURSING,HNSI0000370,1408.06
Department of Health,Leicestershire Partnership NHS Trust,15/05/20,NURSE - BAND 5 - AGENCY,Clarendon Ward,HCL NURSING,HNSI0000370,2177.90
Department of Health,Leicestershire Partnership NHS Trust,15/05/20,NURSE - BAND 2 - AGENCY,Coalville Snibston Ward,HCL NURSING,HNSI0000370,213.27
Department of Health,Leicestershire Partnership NHS Trust,15/05/20,NURSE - BAND 5 - AGENCY,Coalville Snibston Ward,HCL NURSING,HNSI0000370,820.50
Department of Health,Leicestershire Partnership NHS Trust,15/05/20,NURSE - BAND 2 - AGENCY,Coleman Ward,HCL NURSING,HNSI0000370,313.19
Department of Health,Leicestershire Partnership NHS Trust,15/05/20,NURSE - BAND 5 - AGENCY,Coleman Ward,HCL NURSING,HNSI0000370,605.16
Department of Health,Leicestershire Partnership NHS Trust,15/05/20,NURSE - BAND 5 - AGENCY,Dalgliesh Ward,HCL NURSING,HNSI0000370,844.72
Department of Health,Leicestershire Partnership NHS Trust,15/05/20,NURSE - BAND 5 - AGENCY,"East Planned Care - Oadby,Wigston & Harborough",HCL NURSING,HNSI0000370,3730.02
Department of Health,Leicestershire Partnership NHS Trust,15/05/20,NURSE - BAND 2 - AGENCY,Fielding Palmer Nursing,HCL NURSING,HNSI0000370,250.69
Department of Health,Leicestershire Partnership NHS Trust,15/05/20,NURSE - BAND 5 - AGENCY,Gwendolen Ward,HCL NURSING,HNSI0000370,302.58
Department of Health,Leicestershire Partnership NHS Trust,15/05/20,NURSE - BAND 5 - AGENCY,Lough Swithland Ward,HCL NURSING,HNSI0000370,3187.80
Department of Health,Leicestershire Partnership NHS Trust,15/05/20,NURSE - BAND 2 - AGENCY,Non Recurrent 2012/13,HCL NURSING,HNSI0000370,204.82
Department of Health,Leicestershire Partnership NHS Trust,15/05/20,NURSE - BAND 5 - AGENCY,Non Recurrent 2012/13,HCL NURSING,HNSI0000370,63.18
Department of Health,Leicestershire Partnership NHS Trust,15/05/20,NURSE - BAND 2 - AGENCY,Rutland Ward Nursing,HCL NURSING,HNSI0000370,1167.48
Department of Health,Leicestershire Partnership NHS Trust,15/05/20,NURSE - BAND 5 - AGENCY,Rutland Ward Nursing,HCL NURSING,HNSI0000370,2345.10
Department of Health,Leicestershire Partnership NHS Trust,15/05/20,NURSE - BAND 2 - AGENCY,St Lukes Stroke Ward,HCL NURSING,HNSI0000370,174.73
Department of Health,Leicestershire Partnership NHS Trust,15/05/20,NURSE - BAND 5 - AGENCY,St Lukes Ward 3,HCL NURSING,HNSI0000370,2450.55
Department of Health,Leicestershire Partnership NHS Trust,15/05/20,NURSE - BAND 2 - AGENCY,Welford Ward,HCL NURSING,HNSI0000370,308.76
Department of Health,Leicestershire Partnership NHS Trust,15/05/20,NURSE - BAND 5 - AGENCY,Welford Ward,HCL NURSING,HNSI0000370,302.58
Department of Health,Leicestershire Partnership NHS Trust,15/05/20,UHL EFMC (Estates Facilities Management Collaborative),Estates Central Invoices To Recharge,UHL NHS TRUST (RWE),L0242132,827106.58
Department of Health,Leicestershire Partnership NHS Trust,15/05/20,Landline Telephone Rental / Calls,"Beaumont Leys Health Centre (P94, LPT)",VIRGIN MEDIA BUSINESS,853083001/004/0520,563.52
Department of Health,Leicestershire Partnership NHS Trust,15/05/20,Landline Telephone Rental / Calls,Belgrave Health Centre (CHP),VIRGIN MEDIA BUSINESS,853083001/004/0520,328.28
Department of Health,Leicestershire Partnership NHS Trust,15/05/20,Landline Telephone Rental / Calls,"Bennion Centre (including Forest Grange Day Unit) (P8, LPT)",VIRGIN MEDIA BUSINESS,853083001/004/0520,7.74
Department of Health,Leicestershire Partnership NHS Trust,15/05/20,Landline Telephone Rental / Calls,"Bradgate Unit (including Glenvale day Unit) (P7, LPT)",VIRGIN MEDIA BUSINESS,853083001/004/0520,9562.40
Department of Health,Leicestershire Partnership NHS Trust,15/05/20,Landline Telephone Rental / Calls,Braunstone Health and Social Care Centre (Part) (PROPCO),VIRGIN MEDIA BUSINESS,853083001/004/0520,1134.08
Department of Health,Leicestershire Partnership NHS Trust,15/05/20,Landline Telephone Rental / Calls,Bridge Park Plaza - First Floor (LPT),VIRGIN MEDIA BUSINESS,853083001/004/0520,4161.01
Department of Health,Leicestershire Partnership NHS Trust,15/05/20,Landline Telephone Rental / Calls,"Coalville Community Hospital (P138, LPT)",VIRGIN MEDIA BUSINESS,853083001/004/0520,1495.89
Department of Health,Leicestershire Partnership NHS Trust,15/05/20,Landline Telephone Rental / Calls,"Coalville Health Centre (P121, LPT)",VIRGIN MEDIA BUSINESS,853083001/004/0520,330.67
Department of Health,Leicestershire Partnership NHS Trust,15/05/20,Landline Telephone Rental / Calls,County Hall,VIRGIN MEDIA BUSINESS,853083001/004/0520,1259.60
Department of Health,Leicestershire Partnership NHS Trust,15/05/20,Landline Telephone Rental / Calls,Estates & Facilities Central,VIRGIN MEDIA BUSINESS,853083001/004/0520,4253.07
Department of Health,Leicestershire Partnership NHS Trust,15/05/20,Landline Telephone Rental / Calls,"Evington Centre (P6, LPT)",VIRGIN MEDIA BUSINESS,853083001/004/0520,1923.37
Department of Health,Leicestershire Partnership NHS Trust,15/05/20,Landline Telephone Rental / Calls,HIS,VIRGIN MEDIA BUSINESS,853083001/004/0520,6028.92
Department of Health,Leicestershire Partnership NHS Trust,15/05/20,Landline Telephone Rental / Calls,"Hawthorne Centre - Coalville (P14, LPT)",VIRGIN MEDIA BUSINESS,853083001/004/0520,652.49
Department of Health,Leicestershire Partnership NHS Trust,15/05/20,Landline Telephone Rental / Calls,Hinckley & District Hospital (PROPCO),VIRGIN MEDIA BUSINESS,853083001/004/0520,1336.38
Department of Health,Leicestershire Partnership NHS Trust,15/05/20,Landline Telephone Rental / Calls,"Hinckley and Bosworth Community Hospital (Sunnyside) (P133, LPT)",VIRGIN MEDIA BUSINESS,853083001/004/0520,1090.93
Department of Health,Leicestershire Partnership NHS Trust,15/05/20,Landline Telephone Rental / Calls,Hood Park Leisure Centre Clinic,VIRGIN MEDIA BUSINESS,853083001/004/0520,23.22
Department of Health,Leicestershire Partnership NHS Trust,15/05/20,Landline Telephone Rental / Calls,"Hynca Lodge (P33, LPT)",VIRGIN MEDIA BUSINESS,853083001/004/0520,517.62
Department of Health,Leicestershire Partnership NHS Trust,15/05/20,Landline Telephone Rental / Calls,"Legion House, Ashby",VIRGIN MEDIA BUSINESS,853083001/004/0520,74.39
Department of Health,Leicestershire Partnership NHS Trust,15/05/20,Landline Telephone Rental / Calls,Loughborough Health Centre (PROPCO),VIRGIN MEDIA BUSINESS,853083001/004/0520,6.53
Department of Health,Leicestershire Partnership NHS Trust,15/05/20,Landline Telephone Rental / Calls,"Loughborough Hospital (P136, LPT)",VIRGIN MEDIA BUSINESS,853083001/004/0520,5581.26
Department of Health,Leicestershire Partnership NHS Trust,15/05/20,Landline Telephone Rental / Calls,Mawson House (LPT),VIRGIN MEDIA BUSINESS,853083001/004/0520,661.52
Department of Health,Leicestershire Partnership NHS Trust,15/05/20,Landline Telephone Rental / Calls,Melbourne Centre (Pt Grnd flr) (PROPCO),VIRGIN MEDIA BUSINESS,853083001/004/0520,6.45
Department of Health,Leicestershire Partnership NHS Trust,15/05/20,Landline Telephone Rental / Calls,Melton Mowbray Hospital (previously St. Mary's) (PROPCO),VIRGIN MEDIA BUSINESS,853083001/004/0520,1911.20
Department of Health,Leicestershire Partnership NHS Trust,15/05/20,Landline Telephone Rental / Calls,Merlyn Vaz Centre (CHP),VIRGIN MEDIA BUSINESS,853083001/004/0520,2772.35
Department of Health,Leicestershire Partnership NHS Trust,15/05/20,Landline Telephone Rental / Calls,"Mett Centre (P49, LPT)",VIRGIN MEDIA BUSINESS,853083001/004/0520,77.40
Department of Health,Leicestershire Partnership NHS Trust,15/05/20,Landline Telephone Rental / Calls,NSPCC Training Cente,VIRGIN MEDIA BUSINESS,853083001/004/0520,161.66
Department of Health,Leicestershire Partnership NHS Trust,15/05/20,Landline Telephone Rental / Calls,New Parks Health Centre (PROPCO),VIRGIN MEDIA BUSINESS,853083001/004/0520,1416.91
Department of Health,Leicestershire Partnership NHS Trust,15/05/20,Landline Telephone Rental / Calls,"OSL House (P54, LPT)",VIRGIN MEDIA BUSINESS,853083001/004/0520,3327.00
Department of Health,Leicestershire Partnership NHS Trust,15/05/20,Landline Telephone Rental / Calls,"Orchard Resource Centre (P15, LPT)",VIRGIN MEDIA BUSINESS,853083001/004/0520,819.68
Department of Health,Leicestershire Partnership NHS Trust,15/05/20,Landline Telephone Rental / Calls,Pasley Road Health Centre (PROPCO),VIRGIN MEDIA BUSINESS,853083001/004/0520,189.65
Department of Health,Leicestershire Partnership NHS Trust,15/05/20,Landline Telephone Rental / Calls,"Prince Philip House (P96, LPT)",VIRGIN MEDIA BUSINESS,853083001/004/0520,1715.89
Department of Health,Leicestershire Partnership NHS Trust,15/05/20,Landline Telephone Rental / Calls,Rushey Mead Health Centre (PROPCO),VIRGIN MEDIA BUSINESS,853083001/004/0520,144.68
Department of Health,Leicestershire Partnership NHS Trust,15/05/20,Landline Telephone Rental / Calls,"Shepshed Health Centre (P123, LPT)",VIRGIN MEDIA BUSINESS,853083001/004/0520,7.74
Department of Health,Leicestershire Partnership NHS Trust,15/05/20,Landline Telephone Rental / Calls,"Springfield Road Health Centre (P92, LPT)",VIRGIN MEDIA BUSINESS,853083001/004/0520,391.94
Department of Health,Leicestershire Partnership NHS Trust,15/05/20,Landline Telephone Rental / Calls,St Johns House (1st Floor) (PROPCO),VIRGIN MEDIA BUSINESS,853083001/004/0520,1522.95
Department of Health,Leicestershire Partnership NHS Trust,15/05/20,Landline Telephone Rental / Calls,"St Peters Health Center (Part 1st and 2nd floors) (P66, LPT)",VIRGIN MEDIA BUSINESS,853083001/004/0520,2932.11
Department of Health,Leicestershire Partnership NHS Trust,15/05/20,Landline Telephone Rental / Calls,"Stewart House (P61, LPT)",VIRGIN MEDIA BUSINESS,853083001/004/0520,7.74
Department of Health,Leicestershire Partnership NHS Trust,15/05/20,Landline Telephone Rental / Calls,"Swithland House - London Road 352 (P44, LPT)",VIRGIN MEDIA BUSINESS,853083001/004/0520,561.64
Department of Health,Leicestershire Partnership NHS Trust,15/05/20,Landline Telephone Rental / Calls,"The Cedars (P19, LPT)",VIRGIN MEDIA BUSINESS,853083001/004/0520,955.56
Department of Health,Leicestershire Partnership NHS Trust,15/05/20,Landline Telephone Rental / Calls,"The Willows - Cordelia Close (P22, LPT)",VIRGIN MEDIA BUSINESS,853083001/004/0520,491.41
Department of Health,Leicestershire Partnership NHS Trust,15/05/20,Landline Telephone Rental / Calls,Uppingham Road Health Centre (PROPCO),VIRGIN MEDIA BUSINESS,853083001/004/0520,339.89
Department of Health,Leicestershire Partnership NHS Trust,15/05/20,Landline Telephone Rental / Calls,"Valentine Centre (P3, LPT)",VIRGIN MEDIA BUSINESS,853083001/004/0520,3306.13
Department of Health,Leicestershire Partnership NHS Trust,15/05/20,Landline Telephone Rental / Calls,Warren Park Way 25 (PROPCO),VIRGIN MEDIA BUSINESS,853083001/004/0520,758.09
Department of Health,Leicestershire Partnership NHS Trust,15/05/20,Landline Telephone Rental / Calls,"Westcotes Group -Westcotes House (P78, LPT)",VIRGIN MEDIA BUSINESS,853083001/004/0520,2508.37
Department of Health,Leicestershire Partnership NHS Trust,15/05/20,Landline Telephone Rental / Calls,Westcotes Health Centre (CHP),VIRGIN MEDIA BUSINESS,853083001/004/0520,929.42
Department of Health,Leicestershire Partnership NHS Trust,15/05/20,Landline Telephone Rental / Calls,"Winstanley Drive Health Centre (P8, LPT)",VIRGIN MEDIA BUSINESS,853083001/004/0520,551.02
Department of Health,Leicestershire Partnership NHS Trust,18/05/20,Mobile Telephone Rental / Calls,Specific Unit Budget Reserves,VODAFONE CORPORATE LTD,000094782573,67763.66
Department of Health,Leicestershire Partnership NHS Trust,19/05/20,Insurance Costs,Bradgate Ward Support,NHS LITIGATION AUTHORITY,SICX401476,141476.10
Department of Health,Leicestershire Partnership NHS Trust,19/05/20,Med GP Trainees,Medical Trainees,ST.HELENS & KNOWSLEY NHS TRUST,16796316,75000.00
Department of Health,Leicestershire Partnership NHS Trust,19/05/20,FP10'S,Adult City Drugs,NHS BUS SERVICES AUTHORITY,1000064796,14622.52
Department of Health,Leicestershire Partnership NHS Trust,19/05/20,FP10'S,Adult County Drugs,NHS BUS SERVICES AUTHORITY,1000064796,30088.14
Department of Health,Leicestershire Partnership NHS Trust,19/05/20,FP10'S,CAMHS Outpatients,NHS BUS SERVICES AUTHORITY,1000064796,17841.81
Department of Health,Leicestershire Partnership NHS Trust,19/05/20,FP10'S,Children Services Medical,NHS BUS SERVICES AUTHORITY,1000064796,7755.23
Department of Health,Leicestershire Partnership NHS Trust,19/05/20,FP10'S,Dementia Related Drugs and Investigations,NHS BUS SERVICES AUTHORITY,1000064796,6132.90
Department of Health,Leicestershire Partnership NHS Trust,19/05/20,FP10'S,Eating Disorders Outpatient Service,NHS BUS SERVICES AUTHORITY,1000064796,882.34
Department of Health,Leicestershire Partnership NHS Trust,19/05/20,FP10'S,Evington Centre,NHS BUS SERVICES AUTHORITY,1000064796,24.59
Department of Health,Leicestershire Partnership NHS Trust,19/05/20,FP10'S,Forensic Services - Community,NHS BUS SERVICES AUTHORITY,1000064796,201.09
Department of Health,Leicestershire Partnership NHS Trust,19/05/20,FP10'S,LOROS Pharmacy,NHS BUS SERVICES AUTHORITY,1000064796,590.03
Department of Health,Leicestershire Partnership NHS Trust,19/05/20,FP10'S,Leicestershire Psych-oncology Service,NHS BUS SERVICES AUTHORITY,1000064796,40.74
Department of Health,Leicestershire Partnership NHS Trust,19/05/20,FP10'S,Liason Psychiatry Service,NHS BUS SERVICES AUTHORITY,1000064796,282.11
Department of Health,Leicestershire Partnership NHS Trust,19/05/20,FP10'S,Lough Swithland Ward,NHS BUS SERVICES AUTHORITY,1000064796,53.54
Department of Health,Leicestershire Partnership NHS Trust,19/05/20,FP10'S,PIER Team - Early Intervention Services,NHS BUS SERVICES AUTHORITY,1000064796,9925.64
Department of Health,Leicestershire Partnership NHS Trust,19/05/20,FP10'S,Snr Med Staff (Inc Med Reps),NHS BUS SERVICES AUTHORITY,1000064796,6700.08
Department of Health,Leicestershire Partnership NHS Trust,19/05/20,Internal Printing (machines and ink),Estates & Facilities Central,LEXMARK INTERNATIONAL LTD,900650008221,33075.85
Department of Health,Leicestershire Partnership NHS Trust,20/05/20,Computer Hardware,HIS External Recharge,DELL COMPUTERS,7402616868,46497.00
Department of Health,Leicestershire Partnership NHS Trust,20/05/20,Computer Hardware,HIS External Recharge,DELL COMPUTERS,7402616867,46497.00
Department of Health,Leicestershire Partnership NHS Trust,21/05/20,HIS LPT Costs,HIS,THE PHOENIX PARTNERSHIP,11095,698505.83
Department of Health,Leicestershire Partnership NHS Trust,22/05/20,Nurse - Band 6 -Agency,Adult City East CMHT - Merlyn Vaz,HCL NURSING,HNSI0000335.,3541.72
Department of Health,Leicestershire Partnership NHS Trust,22/05/20,Nurse - Band 6 -Agency,Adult County Charnwood CMHT - Loughborough Base,HCL NURSING,HNSI0000335.,2139.75
Department of Health,Leicestershire Partnership NHS Trust,22/05/20,Nurse - Band 6 -Agency,Adult County West Leicestershire CMHT,HCL NURSING,HNSI0000335.,1069.88
Department of Health,Leicestershire Partnership NHS Trust,22/05/20,NURSE - BAND 2 - AGENCY,Agnes Unit Management,HCL NURSING,HNSI0000335.,3164.11
Department of Health,Leicestershire Partnership NHS Trust,22/05/20,NURSE - BAND 5 - AGENCY,Agnes Unit Management,HCL NURSING,HNSI0000335.,2110.79
Department of Health,Leicestershire Partnership NHS Trust,22/05/20,NURSE - BAND 2 - AGENCY,Ashby Ward (Bradgate Unit),HCL NURSING,HNSI0000335.,1516.95
Department of Health,Leicestershire Partnership NHS Trust,22/05/20,Nurse - Band 6 -Agency,Assertive Outreach Services,HCL NURSING,HNSI0000335.,1069.88
Department of Health,Leicestershire Partnership NHS Trust,22/05/20,NURSE - BAND 2 - AGENCY,Aston Ward (Bradgate Unit),HCL NURSING,HNSI0000335.,71.18
Department of Health,Leicestershire Partnership NHS Trust,22/05/20,NURSE - BAND 2 - AGENCY,Beaumont Ward - Bradgate Unit,HCL NURSING,HNSI0000335.,659.12
Department of Health,Leicestershire Partnership NHS Trust,22/05/20,NURSE - BAND 2 - AGENCY,Belvoir Psychiatric Intensive Care Unit,HCL NURSING,HNSI0000335.,6493.67
Department of Health,Leicestershire Partnership NHS Trust,22/05/20,NURSE - BAND 5 - AGENCY,Belvoir Psychiatric Intensive Care Unit,HCL NURSING,HNSI0000335.,3114.65
Department of Health,Leicestershire Partnership NHS Trust,22/05/20,NURSE - BAND 5 - AGENCY,Bosworth Ward - Bradgate Unit,HCL NURSING,HNSI0000335.,1030.01
Department of Health,Leicestershire Partnership NHS Trust,22/05/20,Nurse - Band 6 -Agency,Crisis Resolution,HCL NURSING,HNSI0000335.,4596.53
Department of Health,Leicestershire Partnership NHS Trust,22/05/20,NURSE - BAND 2 - AGENCY,Griffin Ward (HPC),HCL NURSING,HNSI0000335.,482.89
Department of Health,Leicestershire Partnership NHS Trust,22/05/20,NURSE - BAND 5 - AGENCY,Griffin Ward (HPC),HCL NURSING,HNSI0000335.,3076.01
Department of Health,Leicestershire Partnership NHS Trust,22/05/20,NURSE - BAND 2 - AGENCY,Heather Ward,HCL NURSING,HNSI0000335.,168.41
Department of Health,Leicestershire Partnership NHS Trust,22/05/20,NURSE - BAND 5 - AGENCY,Heather Ward,HCL NURSING,HNSI0000335.,2660.68
Department of Health,Leicestershire Partnership NHS Trust,22/05/20,Nurse - Band 6 -Agency,Leicestershire Psych-oncology Service,HCL NURSING,HNSI0000335.,427.95
Department of Health,Leicestershire Partnership NHS Trust,22/05/20,NURSE - BAND 2 - AGENCY,Maple Ward,HCL NURSING,HNSI0000335.,218.93
Department of Health,Leicestershire Partnership NHS Trust,22/05/20,Nurse - Band 6 -Agency,Mental Health Triage Team,HCL NURSING,HNSI0000335.,3331.96
Department of Health,Leicestershire Partnership NHS Trust,22/05/20,NURSE - BAND 2 - AGENCY,Mill Lodge,HCL NURSING,HNSI0000335.,201.67
Department of Health,Leicestershire Partnership NHS Trust,22/05/20,NURSE - BAND 2 - AGENCY,Phoenix Ward (HPC),HCL NURSING,HNSI0000335.,336.82
Department of Health,Leicestershire Partnership NHS Trust,22/05/20,NURSE - BAND 2 - AGENCY,Stewart House,HCL NURSING,HNSI0000335.,185.22
Department of Health,Leicestershire Partnership NHS Trust,22/05/20,NURSE - BAND 2 - AGENCY,Thornton Ward - Bradgate Unit,HCL NURSING,HNSI0000335.,889.48
Department of Health,Leicestershire Partnership NHS Trust,22/05/20,NURSE - BAND 2 - AGENCY,Watermead Ward (Bradgate Unit),HCL NURSING,HNSI0000335.,284.72
Department of Health,Leicestershire Partnership NHS Trust,26/05/20,Rent,"OSL House (P54, LPT)",CABOT TRUSTEES LTD,060,41700.00
Department of Health,Leicestershire Partnership NHS Trust,26/05/20,Network Costs - WAN Maint,COVID 19,VIRGIN MEDIA BUSINESS,60042004,26930.34
Department of Health,Leicestershire Partnership NHS Trust,26/05/20,Gas,"Beaumont Leys Health Centre (P94, LPT)",TOTAL GAS & POWER LTD,213531422/APR20,378.50
Department of Health,Leicestershire Partnership NHS Trust,26/05/20,Gas,"Bradgate Unit (including Glenvale day Unit) (P7, LPT)",TOTAL GAS & POWER LTD,213531422/APR20,7257.62
Department of Health,Leicestershire Partnership NHS Trust,26/05/20,Gas,Bridge Park Plaza - First Floor (LPT),TOTAL GAS & POWER LTD,213531422/APR20,1007.35
Department of Health,Leicestershire Partnership NHS Trust,26/05/20,Gas,"Bridge Park Road - Units 2 and 3 (P148, LPT)",TOTAL GAS & POWER LTD,213531422/APR20,221.28
Department of Health,Leicestershire Partnership NHS Trust,26/05/20,Gas,"Coalville Community Hospital (P138, LPT)",TOTAL GAS & POWER LTD,213531422/APR20,5387.52
Department of Health,Leicestershire Partnership NHS Trust,26/05/20,Gas,"Coalville Health Centre (P121, LPT)",TOTAL GAS & POWER LTD,213531422/APR20,381.36
Department of Health,Leicestershire Partnership NHS Trust,26/05/20,Gas,"Evington Centre (P6, LPT)",TOTAL GAS & POWER LTD,213531422/APR20,602.48
Department of Health,Leicestershire Partnership NHS Trust,26/05/20,Gas,"Farm Lodge (P34, LPT)",TOTAL GAS & POWER LTD,213531422/APR20,103.34
Department of Health,Leicestershire Partnership NHS Trust,26/05/20,Gas,"Feilding Palmer Hospital (Lutterworth) (P131, LPT)",TOTAL GAS & POWER LTD,213531422/APR20,963.08
Department of Health,Leicestershire Partnership NHS Trust,26/05/20,Gas,"Frith Cottages 3 & 4 (P36, LPT)",TOTAL GAS & POWER LTD,213531422/APR20,163.44
Department of Health,Leicestershire Partnership NHS Trust,26/05/20,Gas,HIS,TOTAL GAS & POWER LTD,213531422/APR20,17.34
Department of Health,Leicestershire Partnership NHS Trust,26/05/20,Gas,"Hawthorne Centre - Coalville (P14, LPT)",TOTAL GAS & POWER LTD,213531422/APR20,260.76
Department of Health,Leicestershire Partnership NHS Trust,26/05/20,Gas,"Hinckley and Bosworth Community Hospital (Sunnyside) (P133, LPT)",TOTAL GAS & POWER LTD,213531422/APR20,3716.34
Department of Health,Leicestershire Partnership NHS Trust,26/05/20,Gas,"Hynca Lodge (P33, LPT)",TOTAL GAS & POWER LTD,213531422/APR20,282.79
Department of Health,Leicestershire Partnership NHS Trust,26/05/20,Gas,"LGH - Gwendolen House (P4, LPT)",TOTAL GAS & POWER LTD,213531422/APR20,941.88
Department of Health,Leicestershire Partnership NHS Trust,26/05/20,Gas,"Loughborough Hospital (P136, LPT)",TOTAL GAS & POWER LTD,213531422/APR20,10070.41
Department of Health,Leicestershire Partnership NHS Trust,26/05/20,Gas,Mawson House (LPT),TOTAL GAS & POWER LTD,213531422/APR20,36.28
Department of Health,Leicestershire Partnership NHS Trust,26/05/20,Gas,"Mett Centre (P49, LPT)",TOTAL GAS & POWER LTD,213531422/APR20,163.39
Department of Health,Leicestershire Partnership NHS Trust,26/05/20,Gas,"Narborough Health Centre (P117, LPT)",TOTAL GAS & POWER LTD,213531422/APR20,296.84
Department of Health,Leicestershire Partnership NHS Trust,26/05/20,Gas,"OSL House (P54, LPT)",TOTAL GAS & POWER LTD,213531422/APR20,642.19
Department of Health,Leicestershire Partnership NHS Trust,26/05/20,Gas,"Orchard Resource Centre (P15, LPT)",TOTAL GAS & POWER LTD,213531422/APR20,400.12
Department of Health,Leicestershire Partnership NHS Trust,26/05/20,Gas,"Rubicon Close 3 (P56, LPT)",TOTAL GAS & POWER LTD,213531422/APR20,177.70
Department of Health,Leicestershire Partnership NHS Trust,26/05/20,Gas,"Rutland Memorial Hospital (P134, LPT)",TOTAL GAS & POWER LTD,213531422/APR20,50.34
Department of Health,Leicestershire Partnership NHS Trust,26/05/20,Gas,"Shepshed Health Centre (P123, LPT)",TOTAL GAS & POWER LTD,213531422/APR20,364.33
Department of Health,Leicestershire Partnership NHS Trust,26/05/20,Gas,"Springfield Road Health Centre (P92, LPT)",TOTAL GAS & POWER LTD,213531422/APR20,302.51
Department of Health,Leicestershire Partnership NHS Trust,26/05/20,Gas,"Stewart House (P61, LPT)",TOTAL GAS & POWER LTD,213531422/APR20,1813.10
Department of Health,Leicestershire Partnership NHS Trust,26/05/20,Gas,"Swithland House - London Road 352 (P44, LPT)",TOTAL GAS & POWER LTD,213531422/APR20,507.44
Department of Health,Leicestershire Partnership NHS Trust,26/05/20,Gas,"The Agnes Unit (AKA Assessment and Treatment Centre) (P85, LPT)",TOTAL GAS & POWER LTD,213531422/APR20,1931.95
Department of Health,Leicestershire Partnership NHS Trust,26/05/20,Gas,"The Cedars (P19, LPT)",TOTAL GAS & POWER LTD,213531422/APR20,182.55
Department of Health,Leicestershire Partnership NHS Trust,26/05/20,Gas,"The Grange 1 (P4, LPT)",TOTAL GAS & POWER LTD,213531422/APR20,164.66
Department of Health,Leicestershire Partnership NHS Trust,26/05/20,Gas,"The Grange 2 (P41, LPT)",TOTAL GAS & POWER LTD,213531422/APR20,95.01
Department of Health,Leicestershire Partnership NHS Trust,26/05/20,Gas,"The Willows - Cordelia Close (P22, LPT)",TOTAL GAS & POWER LTD,213531422/APR20,1965.85
Department of Health,Leicestershire Partnership NHS Trust,26/05/20,Gas,"Westcotes Group -Westcotes House (P78, LPT)",TOTAL GAS & POWER LTD,213531422/APR20,687.46
Department of Health,Leicestershire Partnership NHS Trust,26/05/20,Gas,"Winstanley Drive Health Centre (P8, LPT)",TOTAL GAS & POWER LTD,213531422/APR20,313.61
Department of Health,Leicestershire Partnership NHS Trust,26/05/20,NURSE - BAND 2 - AGENCY,Beechwood Ward,HCL NURSING,HNSI0000376,326.55
Department of Health,Leicestershire Partnership NHS Trust,26/05/20,NURSE - BAND 5 - AGENCY,Beechwood Ward,HCL NURSING,HNSI0000376,1655.30
Department of Health,Leicestershire Partnership NHS Trust,26/05/20,NURSE - BAND 5 - AGENCY,City Planned Care - East,HCL NURSING,HNSI0000376,18194.66
Department of Health,Leicestershire Partnership NHS Trust,26/05/20,NURSE - BAND 5 - AGENCY,City Planned Care - West,HCL NURSING,HNSI0000376,8387.22
Department of Health,Leicestershire Partnership NHS Trust,26/05/20,Nurse - Band 6 -Agency,City West CMHT MHSOP,HCL NURSING,HNSI0000376,2952.97
Department of Health,Leicestershire Partnership NHS Trust,26/05/20,NURSE - BAND 2 - AGENCY,Clarendon Ward,HCL NURSING,HNSI0000376,1635.45
Department of Health,Leicestershire Partnership NHS Trust,26/05/20,NURSE - BAND 5 - AGENCY,Clarendon Ward,HCL NURSING,HNSI0000376,3686.44
Department of Health,Leicestershire Partnership NHS Trust,26/05/20,NURSE - BAND 2 - AGENCY,Coalville Snibston Ward,HCL NURSING,HNSI0000376,1010.78
Department of Health,Leicestershire Partnership NHS Trust,26/05/20,NURSE - BAND 5 - AGENCY,Coalville Snibston Ward,HCL NURSING,HNSI0000376,2458.13
Department of Health,Leicestershire Partnership NHS Trust,26/05/20,NURSE - BAND 2 - AGENCY,Coalville Ward 2,HCL NURSING,HNSI0000376,463.97
Department of Health,Leicestershire Partnership NHS Trust,26/05/20,NURSE - BAND 5 - AGENCY,Coalville Ward 2,HCL NURSING,HNSI0000376,1158.19
Department of Health,Leicestershire Partnership NHS Trust,26/05/20,NURSE - BAND 2 - AGENCY,Dalgliesh Ward,HCL NURSING,HNSI0000376,277.94
Department of Health,Leicestershire Partnership NHS Trust,26/05/20,NURSE - BAND 5 - AGENCY,"East Planned Care - Oadby,Wigston & Harborough",HCL NURSING,HNSI0000376,2782.38
Department of Health,Leicestershire Partnership NHS Trust,26/05/20,NURSE - BAND 2 - AGENCY,H&B Comm Hosp East Ward,HCL NURSING,HNSI0000376,1024.47
Department of Health,Leicestershire Partnership NHS Trust,26/05/20,NURSE - BAND 5 - AGENCY,H&B Comm Hosp East Ward,HCL NURSING,HNSI0000376,1558.61
Department of Health,Leicestershire Partnership NHS Trust,26/05/20,NURSE - BAND 2 - AGENCY,H&B Comm Hosp North Ward,HCL NURSING,HNSI0000376,239.56
Department of Health,Leicestershire Partnership NHS Trust,26/05/20,NURSE - BAND 2 - AGENCY,Lough Swithland Ward,HCL NURSING,HNSI0000376,782.19
Department of Health,Leicestershire Partnership NHS Trust,26/05/20,NURSE - BAND 5 - AGENCY,Lough Swithland Ward,HCL NURSING,HNSI0000376,1591.67
Department of Health,Leicestershire Partnership NHS Trust,26/05/20,NURSE - BAND 2 - AGENCY,Rutland Ward Nursing,HCL NURSING,HNSI0000376,240.37
Department of Health,Leicestershire Partnership NHS Trust,26/05/20,NURSE - BAND 2 - AGENCY,St Lukes Stroke Ward,HCL NURSING,HNSI0000376,1920.66
Department of Health,Leicestershire Partnership NHS Trust,26/05/20,NURSE - BAND 2 - AGENCY,St Lukes Ward 3,HCL NURSING,HNSI0000376,349.46
Department of Health,Leicestershire Partnership NHS Trust,26/05/20,NURSE - BAND 5 - AGENCY,St Lukes Ward 3,HCL NURSING,HNSI0000376,2635.94
Department of Health,Leicestershire Partnership NHS Trust,26/05/20,NURSE - BAND 2 - AGENCY,Welford Ward,HCL NURSING,HNSI0000376,781.90
Department of Health,Leicestershire Partnership NHS Trust,27/05/20,CHP Estates Management,Belgrave Health Centre (CHP),COMM HLTH PARTNERSHIPS LTD,0060152324,10177.69
Department of Health,Leicestershire Partnership NHS Trust,27/05/20,CHP Estates Management,Merlyn Vaz Centre (CHP),COMM HLTH PARTNERSHIPS LTD,0060152324,60652.57
Department of Health,Leicestershire Partnership NHS Trust,27/05/20,CHP Estates Management,"St Peters Health Center (Part 1st and 2nd floors) (P66, LPT)",COMM HLTH PARTNERSHIPS LTD,0060152324,9458.26
Department of Health,Leicestershire Partnership NHS Trust,27/05/20,CHP Estates Management,Westcotes Health Centre (CHP),COMM HLTH PARTNERSHIPS LTD,0060152324,13334.80
Department of Health,Leicestershire Partnership NHS Trust,27/05/20,Med Trainees - FY1,Medical Trainees,UHL NHS TRUST (RWE),L0242214,29718.33
Department of Health,Leicestershire Partnership NHS Trust,28/05/20,Medical Equipment Repairs / Maintenance,Medical Devices Maintenance (LPT),SUPPLY CHAIN CO LTD,2121001299,75237.31
Department of Health,Leicestershire Partnership NHS Trust,28/05/20,Rent,"St Peters Health Center (Part 1st and 2nd floors) (P66, LPT)",LEICESTER LIFT CO,LEP1/SI0504,27433.45
Department of Health,Leicestershire Partnership NHS Trust,28/05/20,Computer Software,Director of HR & OD,KALLIDUS LTD,11274,36166.91
Department of Health,Leicestershire Partnership NHS Trust,28/05/20,Landline Telephone Rental / Calls,Information Services,VIRGIN MEDIA BUSINESS,919266-116,27764.44
Department of Health,Leicestershire Partnership NHS Trust,28/05/20,WIP Project Not in BS - Buildings excl Dwellings,Work in Progress,INTERSERVE CONSTRUCTION LTD,TMP00028,406696.64
Department of Health,Leicestershire Partnership NHS Trust,28/05/20,FP10'S,Adult City Central CMHT - St Peters,NHS BUS SERVICES AUTHORITY,1000064106,185.05
Department of Health,Leicestershire Partnership NHS Trust,28/05/20,FP10'S,Adult City Drugs,NHS BUS SERVICES AUTHORITY,1000064106,19286.47
Department of Health,Leicestershire Partnership NHS Trust,28/05/20,FP10'S,Adult County Drugs,NHS BUS SERVICES AUTHORITY,1000064106,28213.69
Department of Health,Leicestershire Partnership NHS Trust,28/05/20,FP10'S,CAMHS Outpatients,NHS BUS SERVICES AUTHORITY,1000064106,12368.32
Department of Health,Leicestershire Partnership NHS Trust,28/05/20,FP10'S,Children Services Medical,NHS BUS SERVICES AUTHORITY,1000064106,7450.27
Department of Health,Leicestershire Partnership NHS Trust,28/05/20,FP10'S,Dementia Related Drugs and Investigations,NHS BUS SERVICES AUTHORITY,1000064106,3369.65
Department of Health,Leicestershire Partnership NHS Trust,28/05/20,FP10'S,Eating Disorders Outpatient Service,NHS BUS SERVICES AUTHORITY,1000064106,240.03
Department of Health,Leicestershire Partnership NHS Trust,28/05/20,FP10'S,Evington Centre,NHS BUS SERVICES AUTHORITY,1000064106,5.33
Department of Health,Leicestershire Partnership NHS Trust,28/05/20,FP10'S,Forensic Services - Community,NHS BUS SERVICES AUTHORITY,1000064106,53.19
Department of Health,Leicestershire Partnership NHS Trust,28/05/20,FP10'S,LOROS Pharmacy,NHS BUS SERVICES AUTHORITY,1000064106,1503.58
Department of Health,Leicestershire Partnership NHS Trust,28/05/20,FP10'S,Leicestershire Psych-oncology Service,NHS BUS SERVICES AUTHORITY,1000064106,56.66
Department of Health,Leicestershire Partnership NHS Trust,28/05/20,FP10'S,Lough Swithland Ward,NHS BUS SERVICES AUTHORITY,1000064106,7.23
Department of Health,Leicestershire Partnership NHS Trust,28/05/20,FP10'S,PIER Team - Early Intervention Services,NHS BUS SERVICES AUTHORITY,1000064106,12300.22
Department of Health,Leicestershire Partnership NHS Trust,28/05/20,FP10'S,Snr Med Staff (Inc Med Reps),NHS BUS SERVICES AUTHORITY,1000064106,4354.40
